bitfinex/quotes_ETHUSD_20250813
["timestamp","ask_amount","ask_price","bid_price","bid_amount"]
[1755083393450,0.1064,4690.5,4690.4,10.991]
[1755083393650,0.1064,4690.5,4690.4,11.4472]
[1755083393830,0.1064,4690.5,4690.4,10.991]
[1755083394039,0.1064,4690.5,4690.4,12.5844]
[1755083394343,0.1064,4690.5,4690.4,9.9284]
[1755083394758,0.1084,4690.9,4690.5,3.0]
[1755083395056,0.1084,4690.9,4690.6,3.227]
[1755083395350,0.1084,4690.9,4690.6,3.6832]
[1755083395550,0.5055,4690.8,4690.6,3.6832]
[1755083395734,0.5055,4690.8,4690.6,4.36114802]
[1755083397156,0.5055,4690.7,4690.6,6.90494802]
[1755083397360,0.1084,4690.9,4690.6,7.36114802]
[1755083397530,0.1084,4690.9,4690.6,6.90494802]
[1755083397842,0.1084,4690.9,4690.7,3.4562]
[1755083398048,0.1084,4690.9,4690.8,3.9631148]
[1755083398245,0.1084,4690.9,4690.8,4.4193148]
[1755083398420,0.002,4690.9,4690.8,4.4193148]
[1755083398625,0.002,4690.9,4690.8,7.5257148]
[1755083400128,0.002,4690.9,4690.8,8.0757148]
[1755083400324,0.002,4691.4,4690.9,3.55]
[1755083400524,0.002,4691.4,4691.1,3.55]
[1755083400760,0.002,4691.4,4691.3,3.1064]
[1755083401070,0.002,4691.7,4691.3,3.12771605]
[1755083401277,0.002,4691.7,4691.4,3.227]
[1755083401570,0.002,4691.7,4691.6,5.2144]
[1755083401740,0.002,4691.7,4691.6,9.59393]
[1755083401942,0.002,4691.7,4691.6,10.02183]
[1755083404952,0.002,4691.7,4691.6,13.02183]
[1755083405155,0.002,4692.4,4691.7,3.55]
[1755083405473,0.5104,4695.1,4691.9,3.55]
[1755083405678,0.6168,4695.1,4692.4,0.55]
[1755083405984,0.6168,4695.1,4694.4,0.1064]
[1755083406190,0.6168,4695.1,4694.6,3.0]
[1755083406351,0.1064,4695.1,4694.7,3.227]
[1755083406554,0.5104,4695.0,4694.7,3.227]
[1755083406763,0.1064,4695.1,4694.8,0.02130016]
[1755083406968,0.1064,4695.4,4694.9,3.6539]
[1755083407166,0.5104,4695.8,4695.0,0.12769925]
[1755083407487,0.1064,4695.7,4695.1,3.226]
[1755083407688,0.5716,4695.7,4695.1,3.226]
[1755083407872,0.5104,4695.6,4695.1,3.226]
[1755083408075,0.5104,4695.5,4695.1,3.226]
[1755083408252,0.5104,4695.4,4695.1,3.226]
[1755083408776,0.1064,4695.7,4695.1,3.226]
[1755083408981,0.5104,4695.3,4695.1,3.226]
[1755083409181,0.5104,4695.2,4695.1,3.226]
[1755083411107,0.5104,4695.6,4695.1,3.226]
[1755083411268,0.5104,4695.5,4695.1,3.226]
[1755083411465,0.1064,4695.7,4695.4,5.105]
[1755083411660,0.1064,4695.7,4695.5,3.225]
[1755083411969,0.4652,4696.3,4695.5,3.225]
[1755083412295,0.5104,4695.7,4695.5,3.225]
[1755083412697,0.5104,4695.6,4695.5,3.225]
[1755083413277,0.9756,4695.6,4695.5,3.225]
[1755083414195,0.9756,4695.6,4695.0,0.1064]
[1755083414399,0.2146,4695.5,4695.2,3.0]
[1755083414600,0.6168,4695.5,4695.3,1.951]
[1755083414895,0.1064,4695.5,4695.4,3.225]
[1755083415402,1.082,4695.5,4695.4,3.225]
[1755083418200,1.082,4695.5,4695.4,3.224]
[1755083418406,1.082,4695.5,4694.8,0.1064]
[1755083418629,1.0838,4695.4,4694.9,1.469]
[1755083418792,0.9756,4695.3,4694.9,1.469]
[1755083418992,0.1064,4695.0,4694.9,1.469]
[1755083419330,1.082,4695.0,4694.9,1.469]
[1755083419622,0.73582,4695.0,4694.9,1.469]
[1755083420130,0.6168,4695.0,4694.9,1.469]
[1755083420997,1.082,4695.0,4694.9,3.128]
[1755083421418,1.082,4695.0,4694.9,2.654]
[1755083421618,1.082,4695.0,4694.9,7.758]
[1755083421791,0.6168,4695.0,4694.9,10.982]
[1755083422410,1.20102,4695.0,4694.9,10.982]
[1755083422804,1.20102,4695.0,4694.9,8.328]
[1755083424506,1.20102,4695.0,4694.9,5.104]
[1755083424706,1.20102,4695.0,4694.9,8.328]
[1755083425036,0.73582,4695.0,4694.9,8.328]
[1755083426543,1.20102,4695.0,4694.9,8.328]
[1755083428013,1.20102,4695.0,4694.9,5.104]
[1755083428218,1.20102,4695.0,4694.9,8.33]
[1755083429886,1.39890615,4695.0,4694.9,8.33]
[1755083430050,1.20102,4695.0,4694.9,8.33]
[1755083430351,1.39890615,4695.0,4694.9,8.33]
[1755083431354,1.20102,4695.0,4694.9,8.33]
[1755083431522,1.3991005,4695.0,4694.9,10.984]
[1755083431723,0.9339005,4695.0,4694.9,10.984]
[1755083433621,1.4023005,4695.0,4694.9,10.984]
[1755083434024,1.40262432,4695.0,4694.9,10.984]
[1755083435673,0.93422432,4695.0,4694.9,10.984]
[1755083437536,0.93455724,4695.0,4694.9,10.984]
[1755083437858,1.40295724,4695.0,4694.9,10.984]
[1755083440064,1.40295724,4695.0,4694.9,10.982]
[1755083440434,1.40295724,4695.0,4694.9,7.758]
[1755083440634,1.40301903,4695.0,4694.9,10.982]
[1755083441239,1.40301902,4695.0,4694.9,10.982]
[1755083442141,1.40301902,4695.0,4694.9,5.104]
[1755083442142,1.95301902,4695.0,4694.9,5.104]
[1755083442366,1.95301902,4695.0,4694.1,2.654]
[1755083442563,9.56934911,4694.9,4693.1,0.451]
[1755083442869,0.19879902,4694.8,4693.2,0.451]
[1755083443038,0.19879902,4694.7,4693.2,0.451]
[1755083443240,0.1064,4694.2,4693.2,0.451]
[1755083443446,0.1064,4694.2,4693.6,0.1064]
[1755083443758,0.1064,4694.2,4693.7,3.678]
[1755083443958,0.1064,4694.2,4693.7,3.227]
[1755083444173,0.1064,4694.2,4693.8,0.451]
[1755083445059,0.1064,4694.2,4693.9,0.451]
[1755083445271,0.1064,4694.5,4693.9,0.451]
[1755083445570,0.1064,4694.5,4693.9,0.867284]
[1755083445771,0.1064,4694.5,4693.9,0.416284]
[1755083445982,0.1064,4694.5,4694.0,0.451]
[1755083448374,0.5301,4695.3,4694.1,0.02130333]
[1755083448584,0.1064,4694.8,4694.2,4.06585873]
[1755083448778,0.1064,4694.8,4694.3,0.451]
[1755083448970,0.1064,4694.8,4694.4,0.02130197]
[1755083449166,0.1064,4694.8,4694.3,3.451]
[1755083449167,0.1064,4694.8,4694.5,0.451]
[1755083449359,0.19915008,4695.2,4694.5,0.451]
[1755083449561,0.1064,4695.3,4694.6,0.12770106]
[1755083449764,0.1064,4695.3,4694.7,3.227]
[1755083450073,0.1064,4695.3,4694.8,0.451]
[1755083450552,0.1064,4695.3,4694.9,0.451]
[1755083450979,0.1064,4695.3,4694.7,3.227]
[1755083451280,0.1064,4695.3,4695.0,0.451]
[1755083451481,0.1064,4695.3,4695.2,5.104]
[1755083451681,0.6365,4695.3,4695.2,8.33]
[1755083453277,1.1049,4695.3,4695.2,8.33]
[1755083454256,1.1049,4695.3,4695.2,5.104]
[1755083454459,1.21559,4695.3,4695.2,8.329]
[1755083454871,0.74719,4695.3,4695.2,8.329]
[1755083455071,0.6365,4695.3,4695.2,8.329]
[1755083455272,0.1064,4695.3,4695.2,8.329]
[1755083455465,0.1064,4695.3,4695.2,8.78]
[1755083456357,0.6365,4695.3,4695.2,8.329]
[1755083456979,1.1049,4695.3,4695.2,8.329]
[1755083457357,0.74719,4695.3,4695.2,5.104]
[1755083457598,1.21559,4695.3,4695.2,8.331]
[1755083459281,1.21559,4695.3,4695.2,5.104]
[1755083459462,1.21559,4695.3,4695.2,8.331]
[1755083460065,0.74719,4695.3,4695.2,8.331]
[1755083460260,1.21779,4695.3,4695.2,8.331]
[1755083462271,1.21779,4695.3,4695.2,5.104]
[1755083462472,1.21779,4695.3,4695.2,8.33]
[1755083463093,1.21779,4695.3,4695.2,5.104]
[1755083463299,1.21779,4695.3,4695.2,8.33]
[1755083463793,0.74719,4695.3,4695.2,8.33]
[1755083464367,1.21779,4695.3,4695.2,8.33]
[1755083467604,0.74719,4695.3,4695.2,8.33]
[1755083467803,1.21779,4695.3,4695.2,8.33]
[1755083468472,1.21779,4695.3,4695.2,7.758]
[1755083469581,1.21779,4695.3,4695.2,10.982]
[1755083471590,0.21709,4695.3,4695.2,10.982]
[1755083471795,0.1084,4695.3,4695.2,10.982]
[1755083472413,0.1084,4695.3,4695.2,11.4187]
[1755083472699,0.002,4695.3,4695.2,8.7647]
[1755083474696,0.002,4695.3,4695.2,3.6607]
[1755083475011,0.002,4695.3,4695.2,4.05870834]
[1755083475704,0.002,4695.3,4695.2,3.60071]
[1755083476009,0.002,4695.3,4695.2,4.03741]
[1755083476886,0.002,4695.3,4695.2,7.03741]
[1755083478945,0.002,4695.3,4695.2,7.58741]
[1755083480927,0.002,4695.3,4695.2,7.83751309]
[1755083481327,0.002,4695.3,4695.2,8.08275683]
[1755083481633,0.002,4695.3,4695.2,15.83875683]
[1755083481831,0.002,4695.8,4695.3,3.55]
[1755083482036,0.002,4695.8,4695.5,0.55]
[1755083482252,0.002,4695.8,4695.7,0.6564]
[1755083482417,0.002,4695.8,4695.7,6.8804]
[1755083482617,0.002,4695.8,4695.7,7.3171]
[1755083482818,0.002,4695.8,4695.7,7.81244683]
[1755083483046,0.002,4695.8,4695.7,8.18915683]
[1755083483452,0.5109,4698.5,4695.8,0.55]
[1755083483614,0.6173,4698.5,4696.0,0.55]
[1755083483835,0.6173,4698.5,4695.9,3.24529517]
[1755083483836,0.1064,4698.5,4696.3,0.1064]
[1755083484043,0.5109,4699.5,4696.4,0.55]
[1755083484365,0.9815,4699.5,4696.6,0.55]
[1755083484658,0.9815,4699.5,4696.8,0.55]
[1755083484992,0.9815,4699.5,4697.0,0.55]
[1755083485450,0.4706,4699.4,4697.2,0.55]
[1755083485665,0.4706,4699.4,4697.4,0.55]
[1755083486162,0.4706,4699.4,4697.6,0.55]
[1755083486369,0.4706,4699.4,4697.9,0.55]
[1755083486536,0.5109,4699.5,4698.1,0.55]
[1755083486859,0.4706,4699.4,4698.2,3.233]
[1755083487159,3.0,4700.9,4695.6,0.2129]
[1755083487367,0.5109,4699.3,4697.9,0.27574374]
[1755083487659,0.5109,4699.3,4698.1,3.55]
[1755083487660,0.4706,4699.2,4698.1,3.55]
[1755083488221,0.5109,4699.3,4698.1,3.55]
[1755083488441,0.5109,4699.3,4698.1,3.9867]
[1755083488649,0.5109,4699.3,4698.1,3.4367]
[1755083488831,0.5109,4699.3,4698.0,0.15731669]
[1755083489030,0.4706,4699.2,4698.1,3.233]
[1755083489317,0.5109,4699.1,4698.1,3.233]
[1755083489522,0.5109,4699.1,4698.2,0.02128474]
[1755083490021,0.9659,4699.7,4698.3,0.57128429]
[1755083490238,0.9659,4699.7,4698.4,0.4507]
[1755083490435,0.5128,4700.2,4698.5,0.57128338]
[1755083490632,0.5128,4700.4,4698.7,0.55]
[1755083490846,0.5128,4700.4,4698.9,3.55]
[1755083491049,0.5128,4700.4,4699.0,0.4507]
[1755083491319,0.5128,4700.4,4698.9,3.55]
[1755083491320,0.5128,4700.4,4699.2,0.55]
[1755083491572,0.4531,4700.9,4699.9,5.101]
[1755083491722,0.4531,4700.9,4699.9,8.336]
[1755083491918,10.767952,4700.0,4699.9,5.101]
[1755083492123,11.221052,4700.0,4699.9,5.101]
[1755083492547,11.221052,4700.0,4699.9,8.337]
[1755083493576,11.221052,4700.0,4697.3,0.4507]
[1755083493880,0.9659,4699.9,4697.4,0.02128837]
[1755083494084,10.255152,4700.0,4697.3,0.4507]
[1755083494085,0.1064,4699.1,4698.4,0.1064]
[1755083494361,0.9659,4699.0,4698.4,0.1064]
[1755083494571,1.07313,4698.9,4697.3,0.4507]
[1755083494738,1.0723,4698.8,4698.1,0.1064]
[1755083494941,1.0723,4698.8,4698.2,2.019]
[1755083495141,0.9659,4698.7,4696.3,0.4507]
[1755083495378,0.1064,4698.0,4697.4,0.1064]
[1755083495531,0.1064,4698.0,4697.5,3.237]
[1755083495728,0.9659,4697.9,4697.5,3.237]
[1755083495934,0.9659,4697.8,4697.5,3.237]
[1755083496233,0.9659,4697.7,4697.5,3.237]
[1755083496545,0.9659,4697.6,4697.5,3.237]
[1755083501477,0.9659,4697.6,4697.5,10.989]
[1755083503195,0.9659,4697.6,4697.5,10.987]
[1755083503997,1.0723,4697.6,4697.5,10.987]
[1755083504297,1.17953,4697.6,4697.5,10.987]
[1755083507486,1.17953,4697.6,4696.9,2.652]
[1755083507685,0.1064,4696.5,4696.1,0.001]
[1755083508054,0.9659,4696.4,4696.1,0.001]
[1755083508454,0.9659,4696.3,4696.1,0.001]
[1755083508655,0.1064,4696.2,4696.1,0.001]
[1755083508857,1.0723,4696.2,4696.1,0.001]
[1755083509063,1.17953,4696.2,4696.1,0.001]
[1755083509364,1.17953,4696.2,4696.1,2.513]
[1755083509565,1.17953,4696.2,4696.1,0.001]
[1755083510004,1.17953,4696.2,4696.1,0.55]
[1755083510204,1.17953,4696.2,4696.1,1.292]
[1755083510566,1.17953,4696.2,4696.1,0.001]
[1755083510902,1.17953,4696.2,4696.1,1.86]
[1755083511596,1.17953,4696.2,4692.2,3.290177]
[1755083511597,0.55,4696.1,4695.5,2.652]
[1755083511799,0.19272565,4696.0,4695.7,5.101]
[1755083511965,0.1064,4695.8,4695.7,5.101]
[1755083512162,1.0723,4695.8,4695.7,5.101]
[1755083512775,1.0723,4695.8,4695.7,8.341]
[1755083513770,1.0723,4695.8,4695.7,5.101]
[1755083513974,1.19880257,4695.8,4695.7,5.101]
[1755083515269,1.19880257,4695.8,4695.7,8.34]
[1755083522183,0.74570257,4695.8,4695.7,8.34]
[1755083522390,0.6192,4695.8,4695.7,8.34]
[1755083522580,1.0583,4695.8,4695.7,8.34]
[1755083522781,0.6192,4695.8,4695.7,8.34]
[1755083523305,0.1064,4695.8,4695.7,8.34]
[1755083523996,0.6322,4695.8,4695.7,8.34]
[1755083524696,1.0713,4695.8,4695.7,8.34]
[1755083524897,1.72843,4695.8,4695.2,2.654]
[1755083525102,1.71243805,4695.7,4694.7,0.001]
[1755083525299,0.1064,4694.8,4694.7,0.001]
[1755083525674,1.0713,4694.8,4694.7,0.001]
[1755083525882,1.72843,4694.8,4694.7,0.001]
[1755083526082,1.92596805,4694.8,4694.7,0.001]
[1755083526389,1.92596805,4694.8,4694.7,0.754]
[1755083526628,1.72843,4694.8,4694.7,0.754]
[1755083526924,0.93698931,4694.8,4694.7,0.754]
[1755083527084,0.93698931,4694.8,4694.7,0.001]
[1755083527085,0.6322,4694.8,4694.7,0.001]
[1755083527280,1.0713,4694.8,4694.7,0.896]
[1755083527699,1.0713,4694.8,4694.7,0.001]
[1755083527889,1.0713,4694.8,4694.7,1.332]
[1755083528101,1.19819593,4694.8,4694.7,1.332]
[1755083529284,1.39585524,4694.8,4694.7,1.332]
[1755083529690,0.43095524,4694.8,4694.7,1.332]
[1755083529909,0.1064,4694.8,4694.7,1.332]
[1755083531297,0.1064,4694.8,4694.7,0.001]
[1755083531503,0.1064,4694.8,4694.7,7.759]
[1755083531709,0.1064,4694.8,4694.7,8.546]
[1755083531911,0.1064,4694.8,4694.7,7.759]
[1755083532101,0.1064,4694.8,4694.7,11.4304]
[1755083532697,0.1064,4694.8,4694.7,8.7764]
[1755083535013,0.1064,4694.8,4694.7,0.001]
[1755083535220,0.1064,4694.8,4694.7,3.241]
[1755083536219,0.1064,4694.8,4694.7,3.6744]
[1755083536893,0.1064,4694.8,4694.7,3.241]
[1755083537101,0.1064,4694.8,4694.7,3.24]
[1755083537307,0.1064,4694.8,4694.7,0.001]
[1755083537515,1.26986931,4694.8,4694.7,3.24]
[1755083537719,1.26986931,4694.8,4694.7,0.001]
[1755083537720,1.39685624,4694.8,4694.7,0.001]
[1755083537914,1.39685624,4694.8,4694.7,3.24]
[1755083538617,1.39685624,4694.8,4694.7,0.001]
[1755083538804,1.39685624,4694.8,4694.7,0.691]
[1755083539007,1.39685624,4694.8,4694.7,0.001]
[1755083539400,1.39685624,4694.8,4694.7,0.789]
[1755083539803,1.39685624,4694.8,4694.7,1.533]
[1755083540004,1.19828693,4694.8,4694.7,2.218]
[1755083540620,1.19828693,4694.8,4694.7,3.24]
[1755083540802,1.19828693,4694.8,4694.7,0.001]
[1755083540998,1.19828693,4694.8,4694.7,3.24]
[1755083541508,1.39707087,4694.8,4694.7,8.344]
[1755083542305,0.30518394,4694.8,4694.7,8.344]
[1755083542699,0.30518394,4694.8,4694.7,8.7774]
[1755083543422,0.30513749,4694.8,4694.7,8.7774]
[1755083544005,0.3051375,4694.8,4694.7,8.7774]
[1755083544525,0.1064,4694.8,4694.7,8.7774]
[1755083544834,0.1064,4695.4,4694.7,0.5408]
[1755083545035,0.19871103,4695.3,4694.7,3.7818]
[1755083545235,0.19871103,4695.2,4694.7,3.7818]
[1755083545550,0.002,4695.8,4694.7,3.7818]
[1755083545551,0.002,4695.8,4694.8,3.45470016]
[1755083545697,0.1064,4695.6,4695.0,0.1064]
[1755083546026,0.1064,4695.6,4695.1,0.4334]
[1755083546214,0.1064,4695.6,4695.3,3.0]
[1755083546526,0.1084,4695.8,4695.5,3.0]
[1755083546826,0.1084,4695.8,4695.6,3.243]
[1755083547209,0.1084,4695.8,4695.0,0.1064]
[1755083547415,0.1084,4695.8,4695.2,3.0]
[1755083547812,0.1084,4695.8,4695.3,0.4334]
[1755083548141,0.1084,4695.8,4695.0,0.1064]
[1755083548347,0.1084,4695.8,4694.7,0.4344]
[1755083548348,0.5278,4695.8,4695.1,3.242]
[1755083548545,0.1064,4695.3,4695.1,3.242]
[1755083548829,0.1064,4695.3,4694.7,0.001]
[1755083549022,0.5278,4695.8,4695.2,3.242]
[1755083549219,0.19848681,4695.7,4695.2,3.242]
[1755083549419,0.1064,4695.3,4695.2,3.242]
[1755083549606,1.0694,4695.3,4695.2,3.242]
[1755083549809,1.26788681,4695.3,4695.2,3.243]
[1755083550209,1.26788681,4695.3,4694.7,0.001]
[1755083550410,0.11653868,4695.7,4694.8,3.244]
[1755083550411,1.16148681,4695.2,4694.8,3.244]
[1755083550630,1.27763549,4695.1,4694.9,0.582]
[1755083550927,1.16148681,4695.0,4694.9,0.582]
[1755083551225,1.26788681,4695.0,4694.7,0.001]
[1755083551414,1.16148681,4694.9,4694.8,5.103]
[1755083552302,1.16148681,4694.9,4694.8,8.347]
[1755083552498,1.10140355,4694.9,4694.7,0.001]
[1755083552716,0.13840355,4694.9,4694.8,8.347]
[1755083552916,0.19851877,4694.9,4694.8,8.347]
[1755083553419,0.963,4694.9,4694.8,8.347]
[1755083556426,0.963,4694.9,4694.7,0.001]
[1755083556627,0.1064,4695.0,4694.8,8.346]
[1755083557447,0.963,4694.9,4694.8,8.346]
[1755083557655,1.06994,4694.9,4694.8,8.346]
[1755083560334,1.61994,4694.9,4694.8,5.104]
[1755083560524,0.55,4694.8,4694.3,2.653]
[1755083560875,0.55,4694.6,4694.4,8.345]
[1755083561021,0.963,4694.5,4694.4,5.104]
[1755083561354,0.963,4694.5,4694.4,8.345]
[1755083561355,1.0694,4694.5,4694.4,8.345]
[1755083561768,0.55,4694.4,4693.9,2.654]
[1755083561934,1.71147293,4694.4,4694.3,5.104]
[1755083562267,6.91802861,4694.4,4694.3,5.104]
[1755083562465,0.55,4694.3,4692.8,0.001]
[1755083562668,0.1064,4693.1,4692.8,0.001]
[1755083563168,1.0694,4693.1,4692.8,0.001]
[1755083563471,1.0694,4693.1,4693.0,3.243]
[1755083563671,1.17634,4693.1,4693.0,3.243]
[1755083564167,1.17634,4693.1,4693.0,0.001]
[1755083564355,1.17634,4693.1,4693.0,3.243]
[1755083565969,0.70154,4693.1,4693.0,3.243]
[1755083566166,0.1064,4693.1,4693.0,3.243]
[1755083566356,0.55,4693.0,4692.9,0.001]
[1755083566561,4.513,4693.0,4692.4,0.001]
[1755083566748,0.55,4692.8,4692.4,0.001]
[1755083566948,3.6564,4692.6,4692.4,0.001]
[1755083567339,4.6194,4692.6,4692.4,0.001]
[1755083567851,4.6194,4692.6,4692.5,1.373]
[1755083568049,0.55,4692.5,4692.4,0.001]
[1755083568247,1.513,4692.5,4692.4,0.001]
[1755083568560,1.72079557,4692.5,4692.4,0.001]
[1755083568763,1.0382,4692.5,4692.4,0.001]
[1755083569355,1.0382,4692.5,4692.4,1.103]
[1755083570443,1.513,4692.5,4692.4,1.103]
[1755083571579,1.513,4692.5,4692.4,6.209]
[1755083571776,0.16194,4692.4,4690.5,0.001]
[1755083571976,0.16194,4692.4,4691.6,8.355]
[1755083572279,0.1064,4691.7,4691.6,8.355]
[1755083572444,0.5946,4691.7,4691.6,8.355]
[1755083572963,1.6194,4691.7,4691.6,5.107]
[1755083573164,1.6194,4691.7,4691.6,8.356]
[1755083573361,1.6194,4691.7,4691.6,5.107]
[1755083573544,1.6194,4691.7,4690.5,0.001]
[1755083573545,0.55,4691.6,4690.5,0.001]
[1755083573747,1.513,4691.6,4690.5,0.001]
[1755083574642,1.513,4691.6,4691.5,1.325]
[1755083574880,1.513,4691.6,4690.5,0.001]
[1755083575048,1.513,4691.5,4690.5,0.001]
[1755083575248,1.88852932,4691.5,4690.5,0.001]
[1755083575657,22.56857646,4691.5,4690.5,0.001]
[1755083576459,22.56857646,4691.5,4691.4,1.03]
[1755083576663,3.55,4691.4,4690.5,0.001]
[1755083576864,0.6564,4690.6,4690.5,0.001]
[1755083577075,0.1064,4690.6,4690.5,0.001]
[1755083577261,1.6194,4690.6,4690.5,0.001]
[1755083577480,1.78134,4690.6,4690.5,0.001]
[1755083577984,0.55,4690.5,4689.8,0.001]
[1755083578181,0.1064,4689.9,4689.8,0.001]
[1755083578582,1.6194,4689.9,4689.8,0.285]
[1755083578767,0.55,4690.5,4689.8,0.285]
[1755083578950,0.1064,4689.9,4689.8,0.285]
[1755083579353,0.5946,4689.9,4689.8,0.285]
[1755083579772,0.5946,4689.9,4689.8,0.085]
[1755083580688,0.1064,4689.9,4689.8,0.085]
[1755083580857,0.1064,4689.9,4689.8,0.5143]
[1755083581058,0.1064,4689.9,4689.8,0.085]
[1755083581491,0.5889,4689.9,4689.8,5.279]
[1755083581686,0.1064,4689.9,4689.8,5.279]
[1755083582898,0.5889,4689.9,4689.8,5.279]
[1755083583561,0.71116341,4689.9,4689.8,5.279]
[1755083584899,1.14746341,4689.9,4689.8,5.279]
[1755083585393,1.34478993,4689.9,4689.8,5.279]
[1755083586300,0.90848993,4689.9,4689.8,5.279]
[1755083586512,1.34478993,4689.9,4689.8,5.279]
[1755083586788,1.34478993,4689.9,4689.8,8.362]
[1755083586963,1.34478993,4689.9,4689.8,5.11]
[1755083587360,1.89478993,4689.9,4689.8,5.11]
[1755083587596,1.89478993,4689.9,4689.3,0.001]
[1755083587807,0.38680551,4689.8,4689.3,0.001]
[1755083587985,1.30560551,4689.8,4689.3,0.001]
[1755083588199,1.30560551,4689.8,4689.7,0.706]
[1755083588365,1.30560551,4689.8,4689.3,0.001]
[1755083588698,21.23004714,4689.6,4689.3,0.001]
[1755083588876,0.55,4689.4,4689.3,0.001]
[1755083589072,0.74732652,4689.4,4688.8,0.001]
[1755083589283,0.6564,4688.9,4688.8,0.001]
[1755083589473,0.85372652,4688.9,4688.8,0.001]
[1755083589669,1.77252652,4688.9,4688.8,0.485]
[1755083589885,0.55,4688.8,4688.3,0.001]
[1755083590097,0.1064,4688.4,4688.3,0.001]
[1755083590260,0.30372652,4688.4,4688.3,0.001]
[1755083590465,1.22252652,4688.4,4688.3,0.001]
[1755083590660,0.78622652,4688.4,4688.3,0.001]
[1755083590883,0.30372652,4688.4,4688.3,0.4303]
[1755083591096,0.78645255,4688.4,4688.3,0.001]
[1755083591286,1.2228888,4688.4,4688.3,0.001]
[1755083591508,1.2228888,4688.4,4688.3,6.237]
[1755083591713,1.22283331,4688.4,4688.3,6.237]
[1755083591913,1.34511664,4688.4,4688.3,6.237]
[1755083592115,0.90881664,4688.4,4688.3,6.237]
[1755083592619,1.34511664,4688.4,4688.3,6.237]
[1755083593322,1.34511664,4688.4,4688.3,8.364]
[1755083593492,1.34513013,4688.4,4688.3,5.111]
[1755083594121,1.34513013,4688.4,4687.3,2.657]
[1755083594417,0.87858611,4688.3,4687.3,2.657]
[1755083594617,0.1976468,4688.2,4687.1,0.4293]
[1755083594923,0.1976468,4688.1,4687.2,0.4293]
[1755083595106,0.1976468,4688.0,4687.3,3.252]
[1755083595309,0.1064,4687.4,4687.3,3.252]
[1755083595487,0.3040468,4687.4,4687.3,3.6813]
[1755083595693,0.30408988,4687.4,4687.3,3.6823]
[1755083595889,0.30408988,4687.4,4685.9,0.1064]
[1755083595890,0.30409421,4687.4,4686.0,0.4293]
[1755083596228,0.19769421,4687.3,4686.1,1.7533]
[1755083596412,0.19769421,4687.2,4686.2,1.324]
[1755083596611,0.4825,4687.4,4686.2,1.324]
[1755083596612,0.1064,4686.3,4686.2,1.324]
[1755083596922,0.30409421,4686.3,4686.2,1.7533]
[1755083597106,0.30409421,4686.3,4686.2,1.324]
[1755083597309,0.30419913,4686.3,4686.2,1.324]
[1755083597515,0.30419913,4686.3,4686.2,1.7533]
[1755083600488,0.30420782,4686.3,4686.2,1.7533]
[1755083601113,0.30415573,4686.3,4686.2,1.7533]
[1755083601427,0.30415573,4686.3,4686.2,4.4113]
[1755083601624,0.30415573,4686.3,4686.2,9.5243]
[1755083602896,0.30431251,4686.3,4686.2,9.5243]
[1755083603216,0.30431251,4686.3,4686.2,9.095]
[1755083604824,0.78681251,4686.3,4686.2,9.095]
[1755083605392,0.68041251,4686.3,4686.2,9.095]
[1755083607336,0.68041251,4686.3,4686.1,0.001]
[1755083607495,0.57166357,4687.0,4686.2,8.366]
[1755083607695,0.38670434,4686.9,4686.3,5.113]
[1755083607932,0.19817228,4686.8,4686.1,0.001]
[1755083608134,0.19817228,4686.7,4686.1,0.001]
[1755083608424,0.19817228,4686.6,4686.1,0.001]
[1755083608617,0.19817228,4686.5,4686.1,0.001]
[1755083608925,0.19817228,4686.4,4686.2,0.918]
[1755083609144,0.79236951,4686.3,4686.2,0.918]
[1755083609302,1.22866951,4686.3,4686.2,0.918]
[1755083609618,1.03049723,4686.3,4686.1,0.001]
[1755083609815,1.13917571,4686.2,4686.1,0.001]
[1755083610132,0.69757571,4686.2,4686.1,0.001]
[1755083610306,0.82265613,4686.2,4686.1,0.001]
[1755083610634,1.26425613,4686.2,4686.1,1.048]
[1755083610834,1.26425613,4686.2,4685.7,0.001]
[1755083611019,1.13916884,4686.1,4685.7,0.001]
[1755083611203,0.19816884,4686.0,4685.7,0.001]
[1755083611516,0.32459445,4685.9,4685.8,5.113]
[1755083611701,1.26559445,4685.9,4685.8,5.113]
[1755083612032,0.82395233,4685.9,4685.8,5.113]
[1755083612228,0.82395233,4685.9,4685.8,8.366]
[1755083612528,1.26555233,4685.9,4685.8,8.366]
[1755083612734,1.26559487,4685.9,4685.8,8.366]
[1755083612943,0.55,4685.8,4683.1,0.4286]
[1755083613125,0.55,4685.3,4684.8,5.113]
[1755083613315,0.55,4685.1,4682.8,0.4286]
[1755083613514,0.55,4684.9,4682.8,0.4286]
[1755083613724,0.55,4684.7,4682.8,0.4286]
[1755083613916,1.13916926,4684.6,4682.8,0.4286]
[1755083614114,1.25308619,4684.5,4681.6,0.35471258]